fUSD/lending_fUSD_20240119
["ID","MTS","AMOUNT","RATE_DAILY","PERIOD"]
[312139195,1705666340889,-1589.65,0.00024638,2]
[312139196,1705666340900,-34180.49,0.00024638,2]
[312139197,1705666340912,-2952.43,0.00024638,2]
[312139198,1705666340923,-892.05,0.00024638,2]
[312139199,1705666340934,-2360.62,0.00024638,2]
[312139200,1705666340946,-2662.92,0.00024638,2]
[312139201,1705666340957,-4108.99,0.00024638,2]
[312139202,1705666340969,-387.22916734,0.00024639,2]
[312139203,1705666340981,-500.0,0.00024639,2]
[312139204,1705666340993,-500.0,0.00024639,2]
[312139205,1705666341004,-500.0,0.00024639,2]
[312139206,1705666341016,-500.0,0.00024639,2]
[312139207,1705666341030,-532.63371212,0.00024639,2]
[312139208,1705666341046,-533.90171027,0.00024639,2]
[312139209,1705666341057,-500.0,0.00024639,2]
[312139210,1705666341070,-500.0,0.00024639,2]
[312139211,1705666341081,-598.8,0.00024639,2]
[312139212,1705666341092,-543.5,0.00024639,2]
[312139213,1705666341104,-527.5114315,0.00024639,2]
[312139214,1705666341116,-500.0,0.00024639,2]
[312139215,1705666341128,-628.05,0.00024639,2]
[312139216,1705666341141,-500.0,0.00024639,2]
[312139217,1705666341152,-960.21,0.00024639,2]
[312139218,1705666341163,-1176.38,0.00024639,2]
[312139219,1705666341174,-500.0,0.00024639,2]
[312139220,1705666341185,-577.3,0.00024639,2]
[312139221,1705666341196,-500.0,0.00024639,2]
[312139222,1705666341207,-500.0,0.00024639,2]
[312139223,1705666341219,-589.13,0.00024639,2]
[312139224,1705666341230,-907.94,0.00024639,2]
[312139225,1705666341241,-915.25,0.00024639,2]
[312139226,1705666341253,-953.2,0.00024639,2]
[312139227,1705666341264,-554.43,0.00024639,2]
[312139228,1705666341275,-500.0,0.00024639,2]
[312139229,1705666341287,-592.33,0.00024639,2]
[312139230,1705666341298,-865.14,0.00024639,2]
[312139231,1705666341309,-500.0,0.00024639,2]
[312139232,1705666341320,-500.0,0.00024639,2]
[312139233,1705666341331,-694.6,0.00024639,2]
[312139234,1705666341342,-634.28,0.00024639,2]
[312139235,1705666341353,-699.21,0.00024639,2]
[312139236,1705666341364,-500.0,0.00024639,2]
[312139237,1705666341376,-500.0,0.00024639,2]
[312139238,1705666341389,-1018.36,0.00024639,2]
[312139239,1705666341401,-988.95,0.00024639,2]
[312139240,1705666341412,-500.0,0.00024639,2]
[312139241,1705666341424,-700.19,0.00024639,2]
[312139242,1705666341435,-500.0,0.00024639,2]
[312139243,1705666341447,-500.0,0.00024639,2]
[312139244,1705666341458,-727.89,0.00024639,2]
[312139245,1705666341470,-1090.17,0.00024639,2]
[312139246,1705666341481,-528.19390387,0.00024639,2]
[312139247,1705666341493,-500.0,0.00024639,2]
[312139248,1705666341504,-500.0,0.00024639,2]
[312139249,1705666341514,-1289.78,0.00024639,2]
[312139250,1705666341525,-500.0,0.00024639,2]
[312139251,1705666341536,-622.34612284,0.00024639,2]
[312139252,1705666341548,-1120.95,0.00024639,2]
[312139253,1705666341559,-1300.86,0.00024639,2]
[312139254,1705666341570,-698.1,0.00024639,2]
[312139255,1705666341580,-906.66,0.00024639,2]
[312139256,1705666341591,-500.0,0.00024639,2]
[312139257,1705666341603,-919.21,0.00024639,2]
[312139258,1705666341614,-500.0,0.00024639,2]
[312139259,1705666341624,-500.0,0.00024639,2]
[312139260,1705666341635,-545.64,0.00024639,2]
[312139261,1705666341646,-1384.85,0.00024639,2]
[312139262,1705666341657,-977.33,0.00024639,2]
[312139263,1705666341668,-500.0,0.00024639,2]
[312139264,1705666341679,-500.0,0.00024639,2]
[312139265,1705666341691,-1012.68,0.00024639,2]
[312139266,1705666341702,-1000.0,0.00024639,2]
[312139267,1705666341713,-500.0,0.00024639,2]
[312139268,1705666341725,-1136.47,0.00024639,2]
[312139269,1705666341736,-500.0,0.00024639,2]
[312139270,1705666341746,-785.17,0.00024639,2]
[312139271,1705666341757,-500.0,0.00024639,2]
[312139272,1705666341768,-500.0,0.00024639,2]
[312139273,1705666341778,-500.0,0.00024639,2]
[312139274,1705666341789,-648.64,0.00024639,2]
[312139275,1705666341801,-1005.41,0.00024639,2]
[312139276,1705666341813,-500.0,0.00024639,2]
[312139277,1705666341824,-500.0,0.00024639,2]
[312139278,1705666341836,-500.0,0.00024639,2]
[312139279,1705666341847,-730.87,0.00024639,2]
[312139280,1705666341858,-756.0,0.00024639,2]
[312139281,1705666341870,-709.1,0.00024639,2]
[312139282,1705666341881,-681.37,0.00024639,2]
[312139283,1705666341893,-500.0,0.00024639,2]
[312139284,1705666341904,-340.5,0.00024639,2]
[312139285,1705666341915,-500.0,0.00024639,2]
[312139286,1705666341926,-626.37,0.00024639,2]
[312139287,1705666341936,-500.0,0.00024639,2]
[312139288,1705666341947,-500.0,0.00024639,2]
[312139289,1705666341958,-500.0,0.00024639,2]
[312139290,1705666341968,-500.0,0.00024639,2]
[312139291,1705666341979,-500.0,0.00024639,2]
[312139292,1705666341990,-926.69,0.00024639,2]
[312139293,1705666342001,-508.80092214,0.00024639,2]
[312139294,1705666342012,-617.42,0.00024639,2]
[312139295,1705666342023,-508.43913692,0.00024639,2]
[312139296,1705666342034,-618.52,0.00024639,2]
[312139297,1705666342045,-500.0,0.00024639,2]
[312139298,1705666342058,-500.0,0.00024639,2]
[312139299,1705666342069,-500.0,0.00024639,2]
[312139300,1705666342081,-530.48,0.00024639,2]
[312139301,1705666342092,-500.0,0.00024639,7]
[312139302,1705666342104,-500.0,0.00024639,2]
[312139303,1705666342116,-500.0,0.00024639,2]
[312139304,1705666342128,-500.0,0.00024639,2]
[312139305,1705666342140,-500.0,0.00024639,2]
[312139306,1705666342151,-596.7,0.00024639,2]
[312139307,1705666342163,-651.28,0.00024639,2]
[312139308,1705666342174,-869.05,0.00024639,2]
[312139309,1705666342185,-813.98,0.00024639,2]
[312139310,1705666342197,-858.03,0.00024639,2]
[312139311,1705666342209,-1255.83,0.00024639,2]
[312139312,1705666342220,-549.02588922,0.00024639,2]
[312139313,1705666342230,-500.0,0.00024639,2]
[312139314,1705666342242,-500.0,0.00024639,2]
[312139315,1705666342253,-1127.81,0.00024639,2]
[312139316,1705666342264,-737.1,0.00024639,2]
[312139317,1705666342276,-500.0,0.00024639,2]
[312139318,1705666342287,-933.45,0.00024639,2]
[312139319,1705666342298,-1285.45,0.00024639,2]
[312139320,1705666342309,-799.51,0.00024639,2]
[312139321,1705666342321,-500.0,0.00024639,2]
[312139322,1705666342332,-1604.6,0.00024639,2]
[312139323,1705666342343,-565.02,0.00024639,2]
[312139324,1705666342354,-500.0,0.00024639,2]
[312139325,1705666342365,-500.0,0.00024639,2]
[312139326,1705666342377,-500.0,0.00024639,2]
[312139327,1705666342387,-520.46,0.00024639,2]
[312139328,1705666342398,-500.0,0.00024639,2]
[312139329,1705666342409,-500.0,0.00024639,2]
[312139330,1705666342425,-728.86,0.00024639,2]
[312139331,1705666342437,-1264.15,0.00024639,2]
[312139332,1705666342448,-500.0,0.00024639,2]
[312139333,1705666342459,-649.55,0.00024639,2]
[312139334,1705666342469,-500.0,0.00024639,2]
[312139335,1705666342481,-511.23,0.00024639,2]
[312139336,1705666342492,-500.0,0.00024639,2]
[312139337,1705666342503,-977.19,0.00024639,2]
[312139338,1705666342514,-500.0,0.00024639,2]
[312139339,1705666342525,-500.0,0.00024639,2]
[312139340,1705666342536,-1528.44,0.00024639,2]
[312139341,1705666342547,-500.0,0.00024639,2]
[312139342,1705666342558,-500.0,0.00024639,2]
[312139343,1705666342570,-500.0,0.00024639,2]
[312139344,1705666342582,-1679.82,0.00024639,2]
[312139345,1705666342594,-627.3,0.00024639,2]
[312139346,1705666342605,-500.0,0.00024639,2]
[312139347,1705666342616,-536.93929459,0.00024639,2]
[312139348,1705666342627,-1835.52,0.00024639,2]
[312139349,1705666342638,-9652.13,0.00024639,2]
[312139350,1705666342649,-515.26,0.00024639,2]
[312139351,1705666342660,-500.0,0.00024639,2]
[312139352,1705666342673,-500.0,0.00024639,2]
[312139353,1705666342686,-500.0,0.00024639,2]
[312139354,1705666342698,-1150.41,0.00024639,2]
[312139355,1705666342709,-4685.36,0.00024639,2]
[312139356,1705666342720,-500.0,0.00024639,2]
[312139357,1705666342730,-500.0,0.00024639,2]
[312139358,1705666342741,-500.0,0.00024639,2]
[312139359,1705666342753,-1244.76,0.00024639,2]
[312139360,1705666342764,-2001.17,0.00024639,2]
[312139361,1705666342775,-836.26,0.00024639,2]
[312139362,1705666342787,-643.71,0.00024639,2]
[312139363,1705666342798,-500.0,0.00024639,2]
[312139364,1705666342809,-500.0,0.00024639,2]
[312139365,1705666342821,-500.0,0.00024639,2]
[312139366,1705666342833,-522.78161518,0.00024639,2]
[312139367,1705666342844,-673.35,0.00024639,2]
[312139368,1705666342855,-500.0,0.00024639,2]
[312139369,1705666342866,-504.87,0.00024639,2]
[312139370,1705666342877,-771.28,0.00024639,2]
[312139371,1705666342889,-500.0,0.00024639,2]
[312139372,1705666342900,-1538.26,0.00024639,2]
[312139373,1705666342912,-500.0,0.00024639,2]
[312139374,1705666342923,-5075.2,0.00024639,2]
[312139375,1705666342934,-226.20656775,0.00024639,2]
[312139376,1705666342946,-1267.24,0.00024639,2]
[312139377,1705666342957,-1264.86,0.00024639,2]
[312139378,1705666342967,-1609.06,0.00024639,2]
[312139379,1705666342979,-847.45,0.00024639,2]
[312139380,1705666342991,-500.0,0.00024639,2]
[312139381,1705666343003,-500.0,0.00024639,2]
[312139382,1705666343014,-500.0,0.00024639,2]
[312139383,1705666343025,-990.0,0.00024639,2]
[312139384,1705666343036,-3252.2,0.00024639,2]
[312139385,1705666343048,-500.0,0.00024639,2]
[312139386,1705666343059,-500.0,0.00024639,2]
[312139387,1705666343070,-500.0,0.00024639,2]
[312139388,1705666343081,-3626.74,0.00024639,2]
[312139389,1705666343094,-500.0,0.00024639,2]
[312139390,1705666343105,-500.0,0.00024639,2]
[312139391,1705666343116,-770.99,0.00024639,2]
[312139392,1705666343128,-758.67,0.00024639,2]
[312139393,1705666343141,-437.86079986,0.00024639,2]
[312139394,1705666343153,-500.0,0.00024639,2]
[312139395,1705666343164,-7664.11,0.00024639,2]
[312139396,1705666343175,-11303.55,0.00024639,2]
[312139397,1705666343186,-500.0,0.00024639,2]
[312139398,1705666343197,-902.16,0.00024639,2]
[312139399,1705666343209,-500.0,0.00024639,2]
[312139400,1705666343221,-500.0,0.00024639,2]
[312139401,1705666343232,-6250.14,0.00024639,2]
[312139402,1705666343243,-621.85782516,0.00024639,2]
[312139403,1705666343253,-664.96,0.00024639,2]
[312139404,1705666343264,-714.13,0.00024639,2]
[312139405,1705666343276,-462.13,0.00024639,2]
[312139406,1705666343286,-868.24,0.00024639,2]
[312139407,1705666343297,-500.0,0.00024639,2]
[312139408,1705666343308,-2960.31,0.00024639,2]
[312139409,1705666343318,-9834.44,0.00024639,2]
[312139410,1705666343330,-498.02478868,0.00024639,2]
[312139411,1705666343341,-2320.43,0.00024639,2]
[312139412,1705666343352,-500.0,0.00024639,2]
[312139413,1705666343364,-267.73871586,0.00024639,2]
[312139414,1705666343375,-291.63123795,0.00024639,2]
[312139415,1705666343385,-5976.03,0.00024639,2]
[312139416,1705666343398,-501.2634192,0.00024639,2]
[312139417,1705666343409,-1820.94,0.00024639,2]
[312139418,1705666343420,-823.03,0.00024639,2]
[312139419,1705666343432,-500.0,0.00024639,2]
[312139420,1705666343444,-500.0,0.00024639,2]
[312139421,1705666343456,-505.81,0.00024639,2]
[312139422,1705666343467,-645.27,0.00024639,2]
[312139423,1705666343479,-1021.23,0.00024639,2]
[312139424,1705666343490,-500.0,0.00024639,2]
[312139425,1705666343501,-796.93,0.00024639,2]
[312139426,1705666343513,-500.0,0.00024639,2]
[312139427,1705666343525,-1032.88,0.00024639,2]
[312139428,1705666343536,-500.0,0.00024639,2]
[312139429,1705666343547,-560.11,0.00024639,2]
[312139430,1705666343559,-1063.08,0.00024639,2]
[312139431,1705666343570,-978.62,0.00024639,2]
[312139432,1705666343581,-3550.01,0.00024639,2]
[312139433,1705666343592,-500.0,0.00024639,2]
[312139434,1705666343604,-804.89,0.00024639,2]
[312139435,1705666343615,-500.0,0.00024639,2]
[312139436,1705666343625,-500.0,0.00024639,2]
[312139437,1705666343636,-500.0,0.00024639,2]
[312139438,1705666343647,-964.83,0.00024639,2]
[312139439,1705666343657,-1091.51,0.00024639,2]
[312139440,1705666343668,-500.0,0.00024639,2]
[312139441,1705666343679,-758.43,0.00024639,2]
[312139442,1705666343690,-304.61330646,0.00024639,2]
[312139443,1705666343702,-705.91,0.00024639,2]
[312139444,1705666343713,-817.94,0.00024639,2]
[312139445,1705666343724,-500.0,0.00024639,2]
[312139446,1705666343735,-1738.46,0.00024639,2]
[312139447,1705666343747,-500.0,0.00024639,2]
[312139448,1705666343758,-500.0,0.00024639,2]
[312139449,1705666343769,-500.0,0.00024639,2]
[312139450,1705666343781,-609.36,0.00024639,2]
[312139451,1705666343793,-806.41,0.00024639,2]
[312139452,1705666343804,-1056.96,0.00024639,2]
[312139453,1705666343815,-500.0,0.00024639,2]
[312139454,1705666343826,-7058.53,0.00024639,2]
[312139455,1705666343838,-500.0,0.00024639,2]
[312139456,1705666343850,-500.0,0.00024639,2]
[312139457,1705666343861,-246.80777857,0.00024639,2]
[312139458,1705666343873,-500.0,0.00024639,2]
[312139459,1705666343884,-500.0,0.00024639,2]
[312139460,1705666343896,-500.0,0.00024639,2]
[312139461,1705666343909,-500.0,0.00024639,2]
[312139462,1705666343921,-500.0,0.00024639,2]
[312139463,1705666343933,-729.56,0.00024639,2]
[312139464,1705666343945,-500.0,0.00024639,2]
[312139465,1705666343956,-500.0,0.00024639,2]
[312139466,1705666343968,-3169.29,0.00024639,2]
[312139467,1705666343979,-1141.43,0.00024639,2]
[312139468,1705666343992,-500.0,0.00024639,2]
[312139469,1705666344011,-549.76878824,0.00024639,2]
[312139470,1705666344022,-2249.61,0.00024639,2]
[312139471,1705666344034,-1700.24,0.00024639,2]
[312139472,1705666344048,-500.0,0.00024639,2]
[312139473,1705666344061,-500.0,0.00024639,2]
[312139474,1705666344073,-500.0,0.00024639,2]
[312139475,1705666344084,-500.0,0.00024639,2]
[312139476,1705666344096,-579.44,0.00024639,2]
[312139477,1705666344107,-500.0,0.00024639,2]
[312139478,1705666344119,-500.0,0.00024639,2]
[312139479,1705666344130,-2381.28,0.00024639,2]
[312139480,1705666344142,-1446.94,0.00024639,2]
[312139481,1705666344154,-500.0,0.00024639,2]
[312139482,1705666344166,-500.0,0.00024639,2]
[312139483,1705666344178,-500.0,0.00024639,2]
[312139484,1705666344190,-4056.5,0.00024639,2]
[312139485,1705666344202,-2985.9,0.00024639,2]
[312139486,1705666344213,-500.0,0.00024639,2]
[312139487,1705666344225,-500.0,0.00024639,2]
[312139488,1705666344236,-696.64,0.00024639,2]
[312139489,1705666344248,-500.0,0.00024639,2]
[312139490,1705666344259,-4455.73,0.00024639,2]
[312139491,1705666344271,-994.17,0.00024639,2]
[312139492,1705666344283,-698.84,0.00024639,2]
[312139493,1705666344295,-500.0,0.00024639,2]
[312139494,1705666344307,-500.0,0.00024639,2]
[312139495,1705666344319,-1513.75,0.00024639,2]
[312139496,1705666344331,-2003.87,0.00024639,2]
[312139497,1705666344343,-500.0,0.00024639,2]
[312139498,1705666344355,-748.63,0.00024639,2]
[312139499,1705666344367,-902.53,0.0002464,2]
[312139500,1705666344380,-703.38,0.0002464,2]
[312139501,1705666344392,-979.41,0.0002464,2]
[312139502,1705666344404,-631.03,0.0002464,2]
[312139503,1705666344416,-529.79,0.0002464,2]
[312139504,1705666344428,-507.27,0.0002464,2]
[312139505,1705666344440,-594.0,0.0002464,2]
[312139506,1705666344452,-604.23,0.0002464,2]
[312139507,1705666344464,-1297.18,0.0002464,2]
[312139508,1705666344476,-2265.29,0.0002464,2]
[312139509,1705666344487,-562.89,0.0002464,2]
[312139510,1705666344500,-500.0,0.0002464,2]
[312139511,1705666344512,-500.0,0.0002464,2]
[312139512,1705666344524,-500.0,0.0002464,2]
[312139513,1705666344536,-990.94,0.0002464,2]
[312139514,1705666344548,-614.26,0.0002464,2]
[312139515,1705666344560,-735.83,0.0002464,2]
[312139516,1705666344573,-856.19,0.0002464,2]
[312139517,1705666344585,-1419.84,0.0002464,2]
[312139518,1705666344597,-679.32,0.0002464,2]
[312139519,1705666344609,-680.33,0.0002464,2]
[312139520,1705666344623,-614.57,0.0002464,2]
[312139521,1705666344635,-1063.63,0.0002464,2]
[312139522,1705666344647,-1592.94,0.0002464,2]
[312139523,1705666344658,-500.0,0.0002464,2]
[312139524,1705666344671,-727.17,0.0002464,2]
[312139525,1705666344684,-903.46,0.0002464,2]
[312139526,1705666344695,-500.0,0.0002464,2]
[312139527,1705666344706,-509.33104052,0.0002464,2]
[312139528,1705666344718,-1089.66,0.0002464,2]
[312139529,1705666344730,-617.46,0.0002464,2]
[312139530,1705666344742,-1111.8,0.0002464,2]
[312139531,1705666344754,-1453.62,0.0002464,2]
[312139532,1705666344766,-637.4,0.0002464,2]
[312139533,1705666344777,-500.0,0.0002464,2]
[312139534,1705666344789,-1203.6,0.0002464,2]
[312139535,1705666344801,-1735.78,0.0002464,2]
[312139536,1705666344813,-500.0,0.0002464,2]
[312139537,1705666344826,-1641.44,0.0002464,2]
[312139538,1705666344838,-500.0,0.0002464,2]
[312139539,1705666344850,-522.53,0.0002464,2]
[312139540,1705666344862,-1160.79,0.0002464,2]
[312139541,1705666344873,-1647.35,0.0002464,2]
[312139542,1705666344885,-356.85,0.0002464,2]
[312139543,1705666344897,-837.65,0.0002464,2]
[312139544,1705666344909,-1818.93,0.0002464,2]
[312139545,1705666344921,-2027.65,0.0002464,2]
[312139546,1705666344933,-1042.11,0.0002464,2]
[312139547,1705666344945,-500.0,0.0002464,2]
[312139548,1705666344957,-981.43,0.0002464,2]
[312139549,1705666344969,-197.0,0.0002464,2]
[312139550,1705666344981,-1018.32,0.0002464,2]
[312139551,1705666344993,-3340.96,0.0002464,2]
[312139552,1705666345005,-981.57,0.0002464,2]
[312139553,1705666345018,-924.24,0.0002464,2]
[312139554,1705666345031,-6001.65,0.0002464,2]
[312139555,1705666345043,-1152.74,0.0002464,2]
[312139556,1705666345059,-500.0,0.0002464,2]
[312139557,1705666345071,-1251.53,0.0002464,2]
[312139558,1705666345084,-500.0,0.0002464,2]
[312139559,1705666345095,-1651.82,0.0002464,2]
[312139560,1705666345107,-609.46,0.0002464,2]
[312139561,1705666345120,-502.82,0.0002464,2]
[312139562,1705666345133,-1979.16,0.0002464,2]
[312139563,1705666345146,-539.5,0.0002464,2]
[312139564,1705666345159,-1430.36,0.0002464,2]
[312139565,1705666345172,-500.0,0.0002464,2]
[312139566,1705666345183,-542.04,0.0002464,2]
[312139567,1705666345196,-9723.53,0.0002464,2]
[312139568,1705666345209,-4403.92,0.0002464,2]
[312139569,1705666345222,-982.89,0.0002464,2]
[312139570,1705666345234,-1318.74,0.0002464,2]
[312139571,1705666345247,-646.54,0.0002464,2]
[312139572,1705666345259,-4083.32,0.0002464,2]
[312139573,1705666345271,-1199.37,0.0002464,2]
[312139574,1705666345284,-716.72,0.0002464,2]
[312139575,1705666345295,-17230.42,0.0002464,2]
[312139576,1705666345307,-875.53,0.0002464,2]
[312139577,1705666345320,-836.21,0.0002464,2]
[312139578,1705666345332,-753.81,0.0002464,2]
[312139579,1705666345344,-3033.73,0.0002464,2]
[312139580,1705666345355,-500.0,0.0002464,2]
[312139581,1705666345368,-4579.41,0.0002464,2]
[312139582,1705666345380,-500.0,0.0002464,2]
[312139583,1705666345392,-811.94,0.0002464,2]
[312139584,1705666345405,-6926.76,0.0002464,2]
[312139585,1705666345416,-344.93900782,0.0002464,2]
[312139586,1705666345429,-1707.03,0.0002464,2]
[312139587,1705666345441,-1650.31,0.0002464,2]
[312139588,1705666345454,-5046.73,0.0002464,2]
[312139589,1705666345469,-2778.35,0.0002464,2]
[312139590,1705666345481,-1008.17,0.0002464,2]
[312139591,1705666345494,-5761.46,0.0002464,2]
[312139592,1705666345507,-830.39,0.0002464,2]
[312139593,1705666345518,-1035.37,0.0002464,2]
[312139594,1705666345530,-1166.82,0.0002464,2]
[312139595,1705666345541,-520.25,0.0002464,2]
[312139596,1705666345554,-11508.39,0.0002464,2]
[312139597,1705666345567,-730.77,0.0002464,2]
[312139598,1705666345579,-1529.43,0.0002464,2]
[312139599,1705666345591,-602.34,0.0002464,2]
[312139600,1705666345603,-2801.61,0.0002464,2]
[312139601,1705666345614,-596.08,0.0002464,2]
[312139602,1705666345627,-847.54,0.0002464,2]
[312139603,1705666345639,-378.6,0.0002464,2]
[312139604,1705666345651,-1217.77,0.0002464,2]
[312139605,1705666345663,-1307.02,0.0002464,2]
[312139606,1705666345675,-1964.39,0.0002464,2]
[312139607,1705666345686,-726.13,0.0002464,2]
[312139608,1705666345699,-2317.69,0.0002464,2]
[312139609,1705666345712,-2438.45,0.0002464,2]
[312139610,1705666345724,-1132.89,0.0002464,2]
[312139611,1705666345736,-500.0,0.0002464,2]
[312139612,1705666345748,-2244.99,0.0002464,2]
[312139613,1705666345760,-2276.25,0.0002464,2]
[312139614,1705666345772,-500.0,0.0002464,2]
[312139615,1705666345785,-2345.08,0.0002464,2]
[312139616,1705666345797,-1779.06,0.0002464,2]
[312139617,1705666345809,-1247.58,0.0002464,2]
[312139618,1705666345822,-150.0,0.0002464,2]
[312139619,1705666345835,-150.0,0.0002464,2]
[312139620,1705666345847,-1265.86,0.0002464,2]
[312139621,1705666345860,-4824.73,0.0002464,2]
[312139622,1705666345873,-1351.04,0.0002464,2]
[312139623,1705666345886,-500.0,0.00024641,2]
[312139624,1705666345898,-564.91,0.00024641,2]
[312139625,1705666345909,-500.0,0.00024641,2]
[312139626,1705666345921,-502.41,0.00024641,2]
[312139627,1705666345934,-568.67,0.00024641,2]
[312139628,1705666345946,-500.0,0.00024641,2]
[312139629,1705666345958,-500.0,0.00024641,2]
[312139630,1705666345970,-500.0,0.00024641,2]
[312139631,1705666345986,-500.0,0.00024641,2]
[312139632,1705666345997,-500.0,0.00024641,2]
[312139633,1705666346010,-500.0,0.00024641,2]
[312139634,1705666346022,-579.96,0.00024641,2]
[312139635,1705666346034,-500.0,0.00024641,2]
[312139636,1705666346048,-514.75,0.00024641,2]
[312139637,1705666346061,-842.5,0.00024641,2]
[312139638,1705666346073,-500.0,0.00024641,2]
[312139639,1705666346086,-500.0,0.00024641,2]
[312139640,1705666346098,-500.0,0.00024641,2]
[312139641,1705666346111,-519.96153577,0.00024641,2]
[312139642,1705666346123,-500.0,0.00024641,2]
[312139643,1705666346136,-639.73,0.00024641,2]
[312139644,1705666346148,-1003.11,0.00024641,2]
[312139645,1705666346160,-500.0,0.00024641,2]
[312139646,1705666346172,-500.0,0.00024641,2]
[312139647,1705666346185,-500.0,0.00024641,2]
[312139648,1705666346197,-500.0,0.00024641,2]
[312139649,1705666346209,-500.0,0.00024641,2]
[312139650,1705666346221,-500.0,0.00024641,2]
[312139651,1705666346233,-500.0,0.00024641,2]
[312139652,1705666346245,-500.0,0.00024641,2]
[312139653,1705666346269,-511.35627052,0.00024641,2]
[312139654,1705666346283,-500.0,0.00024641,2]
[312139655,1705666346296,-520.06,0.00024641,2]
[312139656,1705666346309,-522.38,0.00024641,2]
[312139657,1705666346322,-951.95,0.00024641,2]
[312139658,1705666346336,-500.0,0.00024641,2]
[312139659,1705666346349,-500.0,0.00024641,2]
[312139660,1705666346362,-500.0,0.00024641,2]
[312139661,1705666346374,-500.0,0.00024641,2]
[312139662,1705666346387,-500.0,0.00024641,2]
[312139663,1705666346399,-500.0,0.00024641,2]
[312139664,1705666346412,-500.0,0.00024641,2]
[312139665,1705666346425,-1016.97,0.00024641,2]
[312139666,1705666346439,-500.0,0.00024641,2]
[312139667,1705666346452,-500.0,0.00024641,2]
[312139668,1705666346466,-500.0,0.00024641,2]
[312139669,1705666346478,-500.0,0.00024641,2]
[312139670,1705666346491,-500.0,0.00024641,2]
[312139671,1705666346504,-500.0,0.00024641,2]
[312139672,1705666346517,-500.0,0.00024641,2]
[312139673,1705666346530,-411.6,0.00024641,2]
[312139674,1705666346542,-500.0,0.00024641,2]
[312139675,1705666346555,-500.0,0.00024641,2]
[312139676,1705666346568,-500.0,0.00024641,2]
[312139677,1705666346581,-742.91,0.00024641,2]
[312139678,1705666346594,-500.0,0.00024641,2]
[312139679,1705666346606,-500.0,0.00024641,2]
[312139680,1705666346619,-500.0,0.00024641,2]
[312139681,1705666346632,-625.1,0.00024641,2]
[312139682,1705666346644,-384.07249696,0.00024641,2]
[312139683,1705666346659,-500.0,0.00024641,2]
[312139684,1705666346672,-500.0,0.00024641,2]
[312139685,1705666346684,-538.32,0.00024641,2]
[312139686,1705666346696,-500.0,0.00024641,2]
[312139687,1705666346708,-536.45,0.00024641,2]
[312139688,1705666346721,-661.07,0.00024641,2]
[312139689,1705666346735,-500.0,0.00024641,2]
[312139690,1705666346748,-500.0,0.00024641,2]
[312139691,1705666346760,-500.0,0.00024641,2]
[312139692,1705666346774,-501.35,0.00024641,2]
[312139693,1705666346786,-385.08,0.00024641,2]
[312139694,1705666346799,-439.62,0.00024641,2]